Cogmind - Beta 13 @@@ ROGUE MODE // 2024.07.18 @ 18:02:00 Player: harambe Result: Self-destructed Performance ------------- Evolutions (3) 1500 Regions Visited (4) 800 Robots Destroyed (24) 120 Value Destroyed (880) 880 Prototype IDs (3) 60 Alien Tech Used (0) 0 Bonus (0) 0 TOTAL SCORE: 3360 Bonus ------- None Cogmind --------- Core Integrity 554/700 Matter 167/300 Energy 3/100 System Corruption 2% Temperature Cool (0) Movement Walking (126) Location -7/Factory Parts ------- > --- POWER (2) -------- (None) > --- PROPULSION (5) --- Carbon-fiber Leg Carbon-fiber Leg Light Armored Exoskeleton Flight Unit > --- UTILITY (4) ------ Medium Storage Unit Weight Redist. System Structural Scanner Signal Interpreter > --- WEAPON (2) ------- High-powered Shotgun > --- INVENTORY (10) --- Medium Treads Improved Titanium Leg Flight Unit Heavy Armor Plating Heavy Armor Plating Long-range Tractor Beam Heavy Mace Heavy Flail Peak State ------------ > --- POWER ------------ Light Ion Engine > --- PROPULSION ------- Carbon-fiber Leg Carbon-fiber Leg Light Armored Exoskeleton Flight Unit > --- UTILITY ---------- Medium Storage Unit Weight Redist. System Structural Scanner Signal Interpreter > --- WEAPON ----------- Improved EM Pulse Cannon High-powered Shotgun > --- INVENTORY -------- Medium Treads Improved Titanium Leg Flight Unit Heavy Armor Plating Heavy Armor Plating Long-range Tractor Beam Heavy Mace Heavy Flail [Rating: 31] Favorites ----------- Power Ion Engine Engine Ion Engine Propulsion Aluminum Leg Treads Light Treads Leg Aluminum Leg Flight Unit Flight Unit Utility Medium Storage Unit Device Structural Scanner Storage Medium Storage Unit Processor Signal Interpreter Weapon Medium Laser Energy Gun Medium Laser Energy Cannon Improved EM Pulse Cannon Ballistic Gun High-powered Shotgun Impact Weapon Heavy Mace Slashing Weapon Katana Build | -11 -10 -9 -8 -7 ------- Run | Yrd Mat Mat Mat Fac Slots Evolved 6 | . . 2 2 2 Power 1 | . . . . 1 Propulsion 3 | . . . 2 1 Utility 2 | . . 2 . . Weapon . | . . . . . Parts Attached 32 | . 3 13 12 4 Power 3 | . . 1 2 . Engine 3 | . . 1 2 . Core . | . . . . . Reactor . | . . . . . Propulsion 12 | . . 5 5 2 Treads 1 | . . 1 . . Leg 9 | . . 3 5 1 Wheel . | . . . . . Hover . | . . . . . Flight 2 | . . 1 . 1 Utility 8 | . 3 4 . 1 Device 3 | . . 2 . 1 Storage 4 | . 3 1 . . Processor 1 | . . 1 . . Hackware . | . . . . . Protection . | . . . . . Artifact . | . . . . . Weapon 9 | . . 3 5 1 Energy Gun 3 | . . 3 . . Energy Cannon 1 | . . . . 1 Ballistic Gun 2 | . . . 2 . Ballistic Cannon . | . . . . . Launcher . | . . . . . Special Weapon . | . . . . . Impact Weapon 2 | . . . 2 . Slashing Weapon 1 | . . . 1 . Piercing Weapon . | . . . . . Special Melee Weapon . | . . . . . Unidentified Prototypes 1 | . . . . 1 Parts Lost 11 | . . 3 4 4 Power 2 | . . . 1 1 Propulsion 3 | . . 1 2 . Utility 1 | . . . . 1 Weapon 5 | . . 2 1 2 Highest Loss Streak 2 | . . 2 2 2 To Critical Strikes . | . . . . . Average Slot Usage (%) 94 | . 93 97 99 82 Engine 10 | . 14 11 8 5 Treads 1 | . . 5 . . Leg 24 | . 28 13 35 24 Flight 1 | . . 1 . 7 Device 14 | . . 22 18 14 Storage 12 | . 21 11 9 7 Processor 7 | . . 11 9 7 Energy Gun 15 | . 28 21 8 . Ballistic Gun 3 | . . . 7 7 Impact Weapon 1 | . . . 1 4 Naked Turns . | . . . . . Heaviest Build 29 | 14 29 21 21 24 Greatest Support 66 | 20 20 23 50 66 Greatest Overweight (x) 1 | . 1 1 . . Average Overweight (x) . | . . . . . Largest Inventory Capacity 25 | . 25 10 10 10 Average Capacity 9 | . 9 10 10 10 Most Carried 10 | . 10 10 10 10 Average Carried 9 | . 8 9 9 9 Final Capacity 10 | 8 10 10 10 10 Final Carried 10 | 6 10 10 10 10 Class Distribution -------------------- 71% | Mutant 28% | Scavenger-Mutant Dominant Class ---------------- Mutant | -10/Materials Mutant | -9/Materials Scavenger-Mutant | -8/Materials Mutant | -7/Factory Resources | -11 -10 -9 -8 -7 ----------- Run | Yrd Mat Mat Mat Fac Matter Collected 558 | 179 . 173 104 102 Remotely . | . . . . . Salvage Created 866 | . 100 451 306 9 Parts 45 | . 4 25 16 . Haulers Intercepted . | . . . . . Recyclers Shooed 1 | . . 1 . . Parts Field Recycled . | . . . . . Retrieved Matter . | . . . . . Parts Self-Destructed . | . . . . . Prevented . | . . . . . Kills | -11 -10 -9 -8 -7 ------- Run | Yrd Mat Mat Mat Fac Combat Hostiles Destroyed 24 | . 2 14 7 1 Melee 1 | . . . 1 . Guns 21 | . 2 13 5 1 Classes Destroyed 5 | . 1 2 2 . Swarmer 4 | . . 4 . . Grunt 16 | . 2 9 5 . Duelist 1 | . . 1 . . Sentry 1 | . . . 1 . Hunter 2 | . . . 1 1 Best Kill Streak 4 | . 2 4 3 1 Combat Bots Only 4 | . 2 4 3 1 Max Kills in Single Turn 2 | . 1 1 2 1 Gunslinging 1 | . . . 1 . Exploded . | . . . . . Melee 1 | . . . 1 . Uniques/NPCs Destroyed . | . . . . . Combat | -11 -10 -9 -8 -7 -------- Run | Yrd Mat Mat Mat Fac Hostile Shots Fired 161 | . 10 70 47 34 Missed 42 | . . 22 12 8 Damage Taken 1809 | . 134 535 570 570 Core 295 | . 20 64 65 146 Absorbed by Shields . | . . . . . Core Remaining (%) 91 | 100 92 84 88 . Volleys Fired 101 | . 6 46 24 25 Largest 2 | . 2 2 2 1 Hottest 90 | . 90 90 65 25 Shots Fired 167 | . 12 82 48 25 Gun 167 | . 12 82 48 25 Cannon . | . . . . . Launcher . | . . . . . Special . | . . . . . Kinetic 49 | . . . 24 25 Thermal 110 | . 6 80 24 . Explosive . | . . . . . Electromagnetic 8 | . 6 2 . . Robot Hit Streak 13 | . 4 13 13 3 Robot Miss Streak 5 | . 1 2 5 5 Penetration Max . | . . . . . Secondary Targets 2 | . . 1 1 . Max Gunslinging Chain 1 | . . 1 1 . Shots Hit Robots 115 | . 8 55 35 17 Core Hits 49 | . 5 25 15 4 Critical Kills . | . . . . . Critical Parts Destroyed 2 | . . . 2 . Critical Strikes 4 | . . 2 2 . Burn 2 | . . 2 . . Smash 2 | . . . 2 . Melee Attacks 8 | . . . 8 . Impact 7 | . . . 7 . Slashing 1 | . . . 1 . Piercing . | . . . . . Sneak Attacks . | . . . . . Combat Hostiles . | . . . . . Follow-up Attacks . | . . . . . Damage Inflicted 1626 | . 127 658 621 220 Guns 1499 | . 127 658 494 220 Cannons . | . . . . . Explosions . | . . . . . Melee 127 | . . . 127 . Ramming . | . . . . . Kinetic 559 | . . . 339 220 Thermal 875 | . 77 643 155 . Explosive . | . . . . . Electromagnetic 65 | . 50 15 . . Impact 100 | . . . 100 . Slashing 27 | . . . 27 . Piercing . | . . . . . Highest Corruption 2 | . . . . 2 Average Corruption 1 | . . . . 1 Corruption Purged . | . . . . . Corruption Blocked . | . . . . . Effects 1 | . . . . 1 Matter Fused 1 | . . . . 1 Overload Shots . | . . . . . Overflow Damage 76 | . . . 76 . Projectiles . | . . . . . Explosions . | . . . . . Melee 76 | . . . 76 . Knockbacks . | . . . . . Impact . | . . . . . Kinetic . | . . . . . Secondary . | . . . . . Self-Inflicted Damage . | . . . . . Shots . | . . . . . Rammed . | . . . . . Targets Rammed . | . . . . . Kicked . | . . . . . Crushed . | . . . . . Highest Temperature 240 | . 240 202 4 . Average Temperature 76 | . 128 76 4 . Received Heat Transfer 477 | . 75 168 234 . Siege Activations . | . . . . . Robots Corrupted . | . . . . . Combat Hostiles . | . . . . . Parts Fried 1 | . . . 1 . Impact Corruptions 2 | . . . 2 . Robots Melted 1 | . . 1 . . Combat Hostiles 1 | . . 1 . . Parts Melted 5 | . 1 4 . . Heat Transferred 2407 | . 222 1835 350 . Parts Sabotaged . | . . . . . Parts Stolen . | . . . . . Parts Stripped . | . . . . . Power Chain Reactions . | . . . . . Alert | -11 -10 -9 -8 -7 ------- Run | Yrd Mat Mat Mat Fac Peak Influence 294 | . 62 286 294 153 Initial 133 | . . 26 63 133 Average 121 | . 45 129 181 128 Maximum Alert Level 1 | . . 1 1 . Low Security (%) 84 | . 100 89 49 100 Level 1 15 | . . 10 50 . Level 2 . | . . . . . Level 3 . | . . . . . Level 4 . | . . . . . Level 5 . | . . . . . High Security . | . . . . . Max Security . | . . . . . Squads Dispatched 3 | . . 1 1 1 Investigation 1 | . . . 1 . Extermination . | . . . . . Reinforcement 2 | . . 1 . 1 Assault . | . . . . . Garrison . | . . . . . Intercept . | . . . . . Searches Triggered . | . . . . . Construction Impeded . | . . . . . Haulers Reinforced . | . . . . . Active Scanning Responses . | . . . . . Cargo Convoy Interrupts . | . . . . . Stealth | -11 -10 -9 -8 -7 --------- Run | Yrd Mat Mat Mat Fac Distress Signals 5 | . . 3 2 . Communications Jammed . | . . . . . Distress Signals . | . . . . . Times Spotted 38 | . 3 18 12 5 Peak Tracking Total 8 | . 3 5 8 3 Tactical Retreats 4 | . . 1 3 . Traps | -11 -10 -9 -8 -7 ------- Run | Yrd Mat Mat Mat Fac Traps Triggered 2 | . . . . 2 Indirectly . | . . . . . Trap Hack Attempts . | . . . . . Triggered . | . . . . . Disarmed . | . . . . . Reprogrammed . | . . . . . Reused . | . . . . . Traps Extracted . | . . . . . Installed . | . . . . . Triggered . | . . . . . Machines | -11 -10 -9 -8 -7 ---------- Run | Yrd Mat Mat Mat Fac Machines Disabled . | . . . . . Max in Single Turn . | . . . . . Machines Repaired . | . . . . . Machines Dismantled . | . . . . . Machines Sabotaged . | . . . . . Overloaded Fab Kills . | . . . . . Hacking | -11 -10 -9 -8 -7 --------- Run | Yrd Mat Mat Mat Fac Machines Accessed 7 | . 4 1 2 . Terminals 6 | . 4 1 1 . Fabricators . | . . . . . Repair Stations . | . . . . . Recycling Units . | . . . . . Scanalyzers 1 | . . . 1 . Garrison Access . | . . . . . Total Hacks 11 | . 4 1 6 . Successful 5 | . 2 1 2 . Failed 6 | . 2 . 4 . Catastrophic 1 | . . . 1 . Database Lockouts . | . . . . . Manual 1 | . 1 . . . Terminals 7 | . 4 1 2 . Fabricators . | . . . . . Repair Stations . | . . . . . Recycling Units . | . . . . . Scanalyzers 4 | . . . 4 . Garrison Access . | . . . . . Terminal Hacks 3 | . 2 1 . . Prototype ID Bank 1 | . . 1 . . Registered Components 1 | . 1 . . . Zone Layout 1 | . 1 . . . Fabricator Hacks . | . . . . . Repair Station Hacks . | . . . . . Recycling Unit Hacks . | . . . . . Scanalyzer 2 | . . . 2 . Insert Component 1 | . . . 1 . Analyze 1 | . . . 1 . Garrison Access Hacks . | . . . . . Unauthorized Hacks . | . . . . . Terminals . | . . . . . Fabricators . | . . . . . Repair Stations . | . . . . . Recycling Units . | . . . . . Scanalyzers . | . . . . . Garrison Access . | . . . . . Data Cores Recovered . | . . . . . Used . | . . . . . Hacking Detections 2 | . 1 . 1 . Full Trace Events 1 | . . . 1 . Feedback Events . | . . . . . Feedback Blocked . | . . . . . Robot Schematics Acquired . | . . . . . Robots Built . | . . . . . Authchips . | . . . . . Time . | . . . . . Total Robot Build Rating . | . . . . . Part Schematics Acquired 1 | . . . 1 . Parts Built . | . . . . . Authchips . | . . . . . Time . | . . . . . Total Part Build Rating . | . . . . . Parts Repaired . | . . . . . Time . | . . . . . Parts Recycled . | . . . . . Recycled Matter . | . . . . . Retrieved Matter . | . . . . . Retrieved Components . | . . . . . Parts Scanalyzed 1 | . . . 1 . Part Schematics Acquired 1 | . . . 1 . Parts Damaged . | . . . . . Bothacking | -11 -10 -9 -8 -7 ------------ Run | Yrd Mat Mat Mat Fac Used RIF Installer . | . . . . . Robots Hacked . | . . . . . Non-combat . | . . . . . Combat . | . . . . . Robot Hacks Applied . | . . . . . Relay Couplers Released . | . . . . . Fabnet Peak Effective % . | . . . . . Robots Rewired . | . . . . . Allies Hacked . | . . . . . Hacks Repelled . | . . . . . Allies | -11 -10 -9 -8 -7 -------- Run | Yrd Mat Mat Mat Fac Total Allies . | . . . . . Largest Group . | . . . . . Highest-Rated Group . | . . . . . Highest-Rated Ally . | . . . . . Total Orders . | . . . . . Ally Attacks . | . . . . . Total Damage . | . . . . . Kills . | . . . . . Allies Corrupted . | . . . . . Allies Melted . | . . . . . Intel | -11 -10 -9 -8 -7 ------- Run | Yrd Mat Mat Mat Fac Robot Analysis Total . | . . . . . Derelict Logs Recovered . | . . . . . Drone Launches . | . . . . . Drone Recoveries . | . . . . . Exploration | -11 -10 -9 -8 -7 ------------- Run | Yrd Mat Mat Mat Fac Turns Passed 1455 | . 342 492 334 287 Spaces Moved 744 | 1 191 205 175 172 Core . | . . . . . Treads 100 | . . 100 . . Legs 644 | 1 191 105 175 172 Wheels . | . . . . . Hover . | . . . . . Flight . | . . . . . Fastest Speed 120 | 120 120 120 120 120 Average Speed 138 | 120 154 152 120 124 Slowest Speed 190 | 120 190 190 120 126 Overloaded Moves . | . . . . . Propulsion Burnouts . | . . . . . Robots Hopped . | . . . . . Cave-ins Triggered . | . . . . . Exploration Rate (%) 17 | 1 28 28 22 7 Regions Visited 4 Branch Regions . Pre-discovered Areas . | . . . . . Known Exits Taken 2 | . . 1 1 . Unknown Exits Taken 2 | 1 1 . . . Scrap Searched . | . . . . . Spaces Dug 1 | . . . 1 . Terrain Destroyed 1 | . . . 1 . Melee 1 | . . . 1 . Projectile . | . . . . . AOE . | . . . . . Terrain Rammed . | . . . . . Walls Destroyed . | . . . . . Machines Disabled . | . . . . . Actions | -11 -10 -9 -8 -7 --------- Run | Yrd Mat Mat Mat Fac Total 991 | . 227 307 237 220 Wait 54 | . 21 17 6 10 Move 740 | . 190 204 174 172 Hop . | . . . . . Pick Up 28 | . 4 13 7 4 Fast Attach 9 | . 2 3 2 2 Attach 12 | . . 5 5 2 Detach 1 | . 1 . . . Swap 12 | . 1 5 5 1 Drop 26 | . 2 14 6 4 Fire 101 | . 6 46 24 25 Melee 8 | . . . 8 . Ram . | . . . . . Kick . | . . . . . Crush . | . . . . . Escape Stasis . | . . . . . Rewire . | . . . . . Trap . | . . . . . Miscellaneous . | . . . . . Route ------- -11/Scrapyard -10/Materials -9/Materials -8/Materials -7/Factory History --------- Turn | Location | Event 1 | -11/Scrapyard | Discovered new exit (range 0) 1 | -11/Scrapyard | Entered Materials 321 | -10/Materials | Build established: Mutant 331 | -10/Materials | Discovered new exit (range 4) 343 | -10/Materials | Entered another Materials area 343 | -9/Materials | Evolved 2 slots: Utility x2 792 | -9/Materials | Discovered new exit (range 16) 834 | -9/Materials | Identified exit to Materials 835 | -9/Materials | Entered another Materials area 835 | -8/Materials | Evolved 2 slots: Propulsion x2 1148 | -8/Materials | Build established: Scavenger-Mutant 1155 | -8/Materials | Discovered new exit (range 8) 1167 | -8/Materials | Identified exit to Factory 1169 | -8/Materials | Entered Factory 1169 | -7/Factory | Evolved 2 slots: Power x1, Propulsion x1 1456 | -7/Factory | Self-destructed Last Messages --------------- 01395_ K-01 Serf collects debris. 01400_ Slug penetrates Wall. 01402_ K-01 Serf collects debris. 01403_ Slug penetrates Wall. 01406_ K-01 Serf collects debris. 01406_ Penetrated by Slug. 01409_ K-01 Serf collects debris. 01409_ Penetrated by Slug. 01413_ K-01 Serf collects debris. 01418_ Penetrated by Slug. 01419_ K-01 Serf collects debris. 01421_ Penetrated by Slug. 01422_ K-01 Serf collects debris. 01424_ Penetrated by Slug. 01424_ Imp. EM Pulse Cannon destroyed. 01424_ K-01 Serf collects debris. 01435_ Penetrated by Slug. 01436_ K-01 Serf collects debris. 01439_ H-55 Commando destroyed. 01439_ K-01 Serf collects debris. Map ----- +----------------------------------------------------+ | ?????????????????????????????????????????????????? | | ?????????????????????????????????????????????????? | | ?????????????????????????????????????????????????? | | ?????????????????????????????????????????????????? | | ?????????????????????????????????????????????????? | | ?????????????????????????????????????????????????? | | ?????????????????????????????????????????????????? | | ?????????????????????????????????????????????????? | | ?????????????????????????????????????????????????? | | ?????????????????????????????????????????????????? | | ????????????????????????? ?????????????????????? | | ????????????????????????? ???????????????????? | | ????????????????????????? #??????????????????? | | ????????????????????????? #??????????????????? | | ????????????????????????? #??????????????????? | | ????????????????????????? #??????????????????? | | ????????????????????????? #??????????????????? | | ????????????????????????# #??????????????????? | | ????????????????????????# #??????????????????? | | ????????????????????????+ +??????????????????? | | ????????????????????????# #??????????????????? | | ????????????????????????# w#??????????????????? | | ????????????????????????# #??????????????????? | | ????????????????????????# #??????????????????? | | ????????????????????????# #??????????????????? | | ????????????????????????#@ #??????????????????? | | ????????????????????????# #??????????????????? | | ??????????############### #??????????????????? | | ??????????############### #??????????????????? | | ??????????## # w #??????????????????? | | ??????????## # ###+##### ?????????? | | ??????????## # ????????? | | ??????????## # ????????? | | ??????????## # ????????? | | ??????????## + ????????? | | ??????????## # ????????? | | ??????????## # ##########?????????? | | ???######### # #??????????????????? | | ???######### # #??????????????????? | | ???## ## % # #??????????????????? | | ???## ## # #??????????????????? | | ???## ###+######+#### #??????????????????? | | ???## ### ###### #### #??????????????????? | | ???## ### ###### #### #??????????????????? | | ???## ### ###### #### #??????????????????? | | ???## # = #??????????????????? | | ???## # #??????????????????? | | ???## # """ """ T ???????????????????? | | ???## # """ """ ??????????????????????? | | ???## / """ """ ?????????????????????? | +----------------------------------------------------+ Best States ------------- Heat Dissipation 34 Energy Generation 10 Energy Capacity 250 Matter Stores 300 Matter Capacity 300 Sight Range 16 Terrain Scan Range 14 Terrain Scan Density 10 Additional Mass Support 6 Evasion (%) 55 Recoil Reduction 1 Item Schematics ----------------- Hvy. Armor Plating | -8/Materials | Scanalyzed Robot Schematics ------------------ None Fabricated ------------ Nothing Alien Tech Used ----------------- None Achievements -------------- None Challenges ------------ None Game ------ Seed AntimissileGunUnit Manual? 0 Play Time 00:32:13 Cumulative 79.6 hours Start 2024.07.17 @ 22:17:22 End 2024.07.18 @ 18:02:00 Sessions 5 Manual Loads 0 Difficulty Rogue Special Mode None Game No. 40 Rogue 40 Adventurer 0 Explorer 0 Win Type - Total 0 Types 0/0/0/0/0/0/0/0/0 Lore% 24 Gallery% 44 Achievement% 30 Wizard Run 0 Options --------- Layout 0 ASCII 0 Keyboard 0 Movement Mouse Keybinds 0 Fullscreen 1 Font 18/SmallcapsGlow Map View 76x50 Zoom Use 0% Tactical HUD 1 Map Filters NONE Filters NONE Steam 1 RUN: 8d578df2-d689-4eb8-a463-8c1b2a716325